[Event "14th BPB Limburg Open 2022"]
[Site "Maastricht"]
[Date "2022.06.05"]
[Round "4.6"]
[White "Freeke, Matthieu"]
[Black "Lahaye, Rick"]
[Result "0-1"]
[ECO "B94"]
[WhiteElo "2347"]
[BlackElo "2410"]
[Annotator "TA"]
[PlyCount "64"]
[EventDate "2022.06.03"]
[EventType "swiss"]
[EventCountry "NED"]
[SourceTitle "playchess.com"]
[Source "ChessBase"]
[SourceQuality "1"]
[TimeControl "7200+15"]

{[%evp 16,64,54,58,59,58,119,112,146,141,236,193,289,281,272,231,318,293,245,27,31,-1,360,178,196,34,85,31,27,10,7,0,0,0,13,0,0,-4,0,0,0,0,0,0,0,-117,-117,-117,-117,-427,-387]} 1. e4 {[%emt 0:03:58]} c5 {[%emt 0:00:07]} 2. Nf3 {[%emt 0:00:15]} d6 {[%emt 0:00:08]} 3. d4 {[%emt 0:02:22]} cxd4 {[%emt 0:00:05]} 4. Nxd4 {[%emt 0:00:08]} Nf6 {[%emt 0:00:04]} 5. Nc3 {[%emt 0:00:05]} a6 {[%emt 0:00:04]} 6. Bg5 {[%emt 0:04:11]} Nbd7 {[%emt 0:00:34]} 7. Bc4 {[%emt 0:01:59]} h6 {[%emt 0:00:12]} 8. Bxf6 {[%emt 0:02:36]} Nxf6 {[%emt 0:00:46]} 9. Qe2 {[%emt 0:00:24]} e6 {[%emt 0:02:25] B94: Sicilian Najdorf: 6 Bg5 Nbd7.} 10. O-O-O {[%emt 0:01:24] Strongly threatening f4.} Qa5 {[%emt 0:24:35]} ({Black should try} 10... Qc7 $14) 11. f4 $1 $16 {[%emt 0:03:46]} Qh5 {[%emt 0:00:17] [#] White is better.} 12. Qd3 $146 {[%emt 0:32:18][%cal Oe4e5]} ({Predecessor:} 12. Qe1 Bd7 13. f5 e5 14. Nf3 g5 15. Nd5 Nxd5 16. Bxd5 g4 17. Nd2 Rb8 18. f6 Qg5 19. Rf1 Be6 20. Kb1 h5 21. Nc4 Bxd5 22. Rxd5 b5 23. Nxe5 {1-0 (23) Becerra Rivero,J (2602)-Belliard Alonzo,L (2207) Las Vegas 2008}) 12... Nd7 {[%emt 0:26:46] Prevents e5.} (12... Qc5 $16) 13. e5 {[%emt 0:24:54]} Nc5 {[%emt 0:30:23] [#]} (13... Qg4 {is a better defense.}) 14. Qd2 $1 $18 {[%emt 0:01:03] exd6 is the strong threat.} Bd7 {[%emt 0:00:14]} 15. b4 {[%emt 0:04:58]} Na4 {[%emt 0:13:53]} 16. Nxa4 {[%emt 0:04:14]} Bxa4 {[%emt 0:01:06]} 17. Bb3 $2 {[%emt 0:03:57]} (17. exd6 $18 Rd8 18. Qe3 (18. Be2 Qd5 $15)) 17... Bxb3 $11 {[%emt 0:01:33]} 18. Nxb3 {[%emt 0:00:10]} (18. axb3 $5 {[%cal Re5d6]} Rd8 19. Qc3 $11) 18... O-O-O $2 {[%emt 0:01:49][%mdl 8192]} (18... d5 $11) 19. Qe3 {[%emt 0:04:08]} (19. b5 $142 axb5 20. Nd4) 19... d5 {[%emt 0:07:36] [#]} 20. Rd3 $2 {[%emt 0:13:49]} (20. Qa7 $1 $18 {aiming for Na5.} Qh4 21. Rd4) 20... Qh4 {[%emt 0:01:32]} (20... Bxb4 $2 21. Qb6 (21. Qa7 Kc7 $14) 21... Rd7 22. Qxb4 $18) (20... Rd7 $1 $14) 21. g3 {[%emt 0:05:23]} ({White should play} 21. b5 $16) 21... Qe7 $14 {[%emt 0:00:05]} 22. Rc3+ {[%emt 0:00:38]} (22. a3 $5 {[%cal Re3a7]}) 22... Kb8 {[%emt 0:00:05]} 23. Qb6 {[%emt 0:00:17] Threatens to win with Nc5.} Qd7 {[%emt 0:00:19]} 24. Rd1 {[%emt 0:02:02][%cal Of4f5]} Rc8 {[%emt 0:01:34]} 25. Rdd3 {[%emt 0:02:21]} Be7 {[%emt 0:00:52]} 26. Nd4 {[%emt 0:00:16]} Rxc3 {[%emt 0:00:59]} 27. Rxc3 {[%emt 0:00:01] Hoping for Nc6+.} Rc8 {[%emt 0:00:01] Against Nc6+} 28. Rxc8+ {[%emt 0:01:12]} Qxc8 {[%emt 0:00:01]} 29. Kd2 {[%emt 0:00:48]} Qc4 {[%emt 0:00:34]} 30. c3 {[%emt 0:00:06]} (30. a3 $11 {remains equal.}) 30... Qxa2+ $17 {[%emt 0:00:15]} 31. Ke3 {[%emt 0:00:03] And now Nc6+ would win.} Qc4 {[%emt 0:00:11] Prevents Nc6+.} 32. b5 $2 {[%emt 0:01:16][%mdl 8192]} (32. Kd2 $17 {is tougher.}) 32... Bc5 {[%emt 0:02:11] Weighted Error Value: White=0.55/Black=0.48} 0-1

[Event "14th BPB Limburg Open 2022"]
[Site "Maastricht"]
[Date "2022.06.05"]
[Round "4.7"]
[White "Slagboom, Leandro"]
[Black "Sankalp Gupta"]
[Result "1-0"]
[ECO "B15"]
[WhiteElo "1997"]
[BlackElo "2505"]
[Annotator "TA"]
[PlyCount "67"]
[EventDate "2022.06.03"]
[EventType "swiss"]
[EventCountry "NED"]
[SourceTitle "playchess.com"]
[Source "ChessBase"]
[SourceQuality "1"]
[TimeControl "7200+15"]

{[%evp 10,67,66,66,70,69,88,85,115,99,99,99,91,87,108,112,100,105,129,117,116,128,148,155,141,120,268,258,291,280,280,224,256,235,462,466,419,349,327,233,233,224,582,562,570,577,555,451,590,572,982,979,970,948,29988,1040,2185,1949,1543,933]} 1. e4 {[%emt 0:00:04]} c6 {[%emt 0:02:34]} 2. d4 {[%emt 0:00:06]} d5 {[%emt 0:00:06]} 3. f3 {[%emt 0:00:26]} g6 {[%emt 0:01:12]} 4. Nc3 {[%emt 0:03:16]} Bg7 {[%emt 0:00:41]} 5. Be3 {[%emt 0:01:07]} Nf6 {[%emt 0:04:06]} 6. e5 {[%emt 0:03:12]} Nfd7 {[%emt 0:00:09] B15: Caro-Kann: 3 Nc3: 3...g6 and 3...dxe4 4 Nxe4 Nf6 5 Nxf6+ exf6.} 7. f4 {[%emt 0:04:38] White is more active.} b5 {[%emt 0:02:07]} 8. Nf3 {[%emt 0:15:49]} e6 {[%emt 0:04:52] [#] White is better.} 9. a3 $146 {[%emt 0:04:41]} ({Predecessor:} 9. Bd3 Nb6 10. b3 b4 11. Ne2 Ba6 12. Bxa6 Nxa6 13. O-O h5 14. Qd3 Nb8 15. c3 {½-½ (32) Sagafos,M (2059)-Mansson,L (2120) Helsinki 1999}) 9... Nb6 {[%emt 0:04:33]} 10. h4 {[%emt 0:02:45]} h5 {[%emt 0:00:56]} 11. g4 {[%emt 0:08:31]} Nc4 {[%emt 0:03:15]} 12. Bxc4 {[%emt 0:06:16]} bxc4 {[%emt 0:02:54]} 13. gxh5 {[%emt 0:00:21]} Rxh5 {[%emt 0:01:21]} 14. Ne2 {[%emt 0:02:05]} Nd7 {[%emt 0:04:20]} 15. Ng3 {[%emt 0:02:01]} Rh8 {[%emt 0:00:01]} 16. h5 {[%emt 0:01:38]} Rb8 {[%emt 0:00:20]} 17. Rb1 {[%emt 0:01:31]} c3 {[%emt 0:02:37] [#] A mistake that costs the game.} (17... Qe7 $16) 18. b3 $1 $18 {[%emt 0:05:01]} Ba6 {[%emt 0:00:35]} 19. Kf2 {[%emt 0:02:23]} Qe7 {[%emt 0:01:28]} 20. Qg1 {[%emt 0:13:13][%cal Of4f5] aiming for f5!} Rg8 {[%emt 0:06:37]} 21. f5 {[%emt 0:19:23]} (21. h6 $6 Bf8 22. h7 Rh8 $18) 21... exf5 $2 {[%emt 0:01:47]} (21... gxf5 22. Nxf5 exf5) 22. h6 {[%emt 0:01:25]} Bf8 {[%emt 0:00:30]} 23. Nxf5 {[%emt 0:00:59] Chess con chili.} Qe6 {[%emt 0:00:13]} 24. Ng7+ {[%emt 0:11:03]} ({Less strong is} 24. h7 Rh8 25. Qg5 Rb5 $18) 24... Bxg7 {[%emt 0:04:16]} 25. hxg7 {[%emt 0:00:01] [#] And now Rh8 would win.} Qf5 $2 {[%emt 0:00:12]} (25... Kd8 {is more resistant.} 26. Qg5+ Kc7) 26. Qg5 {[%emt 0:04:02] Rh8 is the strong threat.} f6 {[%emt 0:12:53]} 27. Qxf5 {[%emt 0:01:30]} gxf5 {[%emt 0:00:01]} 28. e6 {[%emt 0:00:46][%cal Be5e6,Be6e7][%mdl 32]} Nb6 {[%emt 0:00:03]} 29. Nh4 {[%emt 0:01:31]} (29. Bf4 Rb7 30. Rbg1 (30. Bh6 Nc8 $18) 30... Rbxg7 31. Rxg7 Rxg7 $18) 29... Ke7 {[%emt 0:05:18]} 30. Bf4 {[%emt 0:00:26] Threatening mate with Ng6+.} Rbe8 {[%emt 0:02:21]} 31. Rbe1 {[%emt 0:00:15] Intending Bc7 and mate.} Bc8 {[%emt 0:00:01]} 32. Nxf5+ {[%emt 0:01:28]} (32. Ng6+ $142 Kd8 33. e7+ Rxe7 34. Rxe7 Be6 35. Rh8 Nd7 36. Rxe6 Kc8 37. Rxg8+ Kb7 38. Rh8) 32... Kd8 {[%emt 0:00:01]} 33. e7+ {[%emt 0:00:21]} Kd7 {[%emt 0:00:01]} 34. Rh6 {[%emt 0:00:58] Weighted Error Value: White=0.12 (very precise) /Black=0.72} 1-0

[Event "14th BPB Limburg Open 2022"]
[Site "Maastricht"]
[Date "2022.06.05"]
[Round "4.8"]
[White "Zwirs, Nico"]
[Black "Wild, Achim"]
[Result "1-0"]
[ECO "C41"]
[WhiteElo "2468"]
[BlackElo "2258"]
[Annotator "TA"]
[PlyCount "123"]
[EventDate "2022.06.03"]
[EventType "swiss"]
[EventCountry "NED"]
[SourceTitle "playchess.com"]
[Source "ChessBase"]
[SourceQuality "1"]
[TimeControl "7200+15"]

{[%evp 17,123,52,54,29,31,26,38,25,37,27,47,0,0,-34,-29,-31,-10,-48,-11,-11,0,0,-4,-31,-37,-37,-25,-24,44,35,33,45,45,28,39,26,58,26,38,24,28,16,36,0,29,21,45,30,119,4,85,83,152,3,0,6,6,0,0,0,0,0,0,0,0,0,7,7,22,4,5,5,7,0,10,10,51,0,0,0,0,0,0,0,0,-9,0,0,0,1,20,8,8,0,0,0,8,2,645,641,623,623,595,552,5964,5654,2295,1236]} 1. e4 {[%emt 0:00:02]} d6 {[%emt 0:12:14]} 2. d4 {[%emt 0:00:11]} Nf6 {[%emt 0:00:07]} 3. Nc3 {[%emt 0:00:01]} e5 {[%emt 0:00:04]} 4. Nf3 {[%emt 0:00:06]} Nbd7 {[%emt 0:00:06]} 5. Bc4 {[%emt 0:00:08]} Be7 {[%emt 0:00:06]} 6. O-O {[%emt 0:00:06]} O-O {[%emt 0:00:04]} 7. a4 {[%emt 0:00:10]} c6 {[%emt 0:00:06]} 8. Re1 {[%emt 0:00:09]} h6 {[%emt 0:00:05] is now debated instead of 8...b6.} 9. h3 {[%emt 0:00:22]} Re8 {[%emt 0:00:07]} 10. Be3 {[%emt 0:01:36] C41: Philidor Defence.} exd4 {[%emt 0:00:47]} 11. Qxd4 {[%emt 0:04:38]} Nf8 {[%emt 0:00:45]} 12. Rad1 {[%emt 0:06:52] White is slightly better.} Be6 {[%emt 0:00:46]} 13. Bf4 {[%emt 0:06:08]} a6 {[%emt 1:04:16] [#]} 14. Bf1 $146 {[%emt 0:13:59]} (14. Bh2 $14 {might be stronger.}) ({Predecessor:} 14. Qd3 Qb6 15. Nd4 Bxc4 16. Qxc4 d5 17. exd5 cxd5 18. Qb3 Bc5 {½-½ (18) Druska,J (2515)-Berkes,F (2661) Skalica 2020}) 14... d5 $1 $11 {[%emt 0:02:08]} 15. e5 {[%emt 0:12:38]} N6d7 {[%emt 0:01:29]} 16. Ne2 {[%emt 0:06:36]} Ng6 {[%emt 0:08:45]} 17. Bg3 {[%emt 0:04:50]} Qa5 {[%emt 0:00:31]} 18. Ra1 {[%emt 0:06:46]} c5 {[%emt 0:01:06]} 19. Qd1 {[%emt 0:01:04]} Rad8 {[%emt 0:01:53]} 20. Nf4 {[%emt 0:01:54]} Nxf4 {[%emt 0:00:59]} 21. Bxf4 {[%emt 0:00:05]} Nf8 {[%emt 0:02:30]} 22. Bd3 {[%emt 0:03:45]} d4 {[%emt 0:01:34] Prevents c3.} (22... c4 $11 23. Bf1 Bc5) 23. Nd2 $14 {[%emt 0:03:29]} Qc7 {[%emt 0:06:15] [#] aiming for ...c4.} 24. b3 {[%emt 0:03:57] Against c4} Qc6 {[%emt 0:04:13]} 25. a5 {[%emt 0:10:37]} Bd5 {[%emt 0:00:44]} 26. Ne4 {[%emt 0:08:33]} Ne6 {[%emt 0:03:34]} 27. Bd2 {[%emt 0:01:59]} Ng5 {[%emt 0:03:01]} 28. Bxg5 {[%emt 0:07:21]} hxg5 {[%emt 0:01:31]} 29. Qg4 {[%emt 0:01:39]} Qh6 {[%emt 0:00:36]} 30. Nd2 {[%emt 0:08:06]} (30. Nd6 $5) 30... Bf8 {[%emt 0:01:07]} 31. Nc4 {[%emt 0:00:41]} Be6 {[%emt 0:00:26]} 32. Qf3 {[%emt 0:01:13]} Qh4 {[%emt 0:00:21]} (32... Bd5 $11 33. Be4 Bxc4 34. bxc4 Rxe5) 33. Bf5 {[%emt 0:02:03] White is more active.} (33. Nd6 $16 Bxd6 34. exd6) 33... Bxc4 {[%emt 0:02:23]} (33... Qf4 $11 {remains equal.} 34. Be4 Qxf3 35. Bxf3 Rd7) 34. bxc4 $16 {[%emt 0:00:01] Strongly threatening g3.} g6 {[%emt 0:00:08]} (34... Qf4 $142) 35. Be4 {[%emt 0:03:29]} (35. Bg4 $16) 35... Rxe5 $11 {[%emt 0:00:02]} 36. Bxb7 {[%emt 0:00:01]} Rf5 {[%emt 0:00:45]} 37. Qg3 {[%emt 0:00:18]} (37. Qe2 {looks sharper.} Rf6 38. Qd2 Bd6 39. Re4) 37... Qxg3 {[%emt 0:00:22]} 38. fxg3 {[%emt 0:00:01]} Rf6 {[%emt 0:00:08]} 39. Rab1 {[%emt 0:00:26]} Kg7 {[%emt 0:00:10]} 40. Rf1 {[%emt 0:01:36]} Rxf1+ {[%emt 0:00:34]} 41. Kxf1 {[%emt 0:00:02][%mdl 4096] Endgame KRB-KRB} Rb8 {[%emt 0:00:19]} 42. Rb6 {[%emt 0:00:42]} Be7 {[%emt 0:00:11]} 43. Bxa6 {[%emt 0:01:22]} Ra8 {[%emt 0:00:03]} 44. Rc6 {[%emt 0:00:50]} Bd8 {[%emt 0:00:03]} 45. Bb5 {[%emt 0:00:10] [#] Hoping for a6.} Bxa5 {[%emt 0:00:07]} 46. Rxc5 {[%emt 0:00:04]} Ra7 {[%emt 0:01:17]} 47. Rxg5 {[%emt 0:00:12]} ({White should play} 47. Bc6 $14) 47... f5 {[%emt 0:00:02] ...Bd8 is the strong threat.} 48. Be8 {[%emt 0:00:22]} Ra6 {[%emt 0:00:01]} 49. Bxg6 {[%emt 0:00:30]} Rxg6 {[%emt 0:00:03]} 50. Rxf5 {[%emt 0:00:01] KRB-KR} Bc3 {[%emt 0:00:17]} 51. c5 {[%emt 0:00:29]} Ra6 {[%emt 0:00:29]} 52. Ke2 {[%emt 0:00:13]} Ba1 {[%emt 0:01:32]} 53. g4 {[%emt 0:00:11]} Ra2 {[%emt 0:00:10]} 54. Kd2 {[%emt 0:00:12]} Ra3 $1 {[%emt 0:00:12]} 55. Rf3 {[%emt 0:00:26]} Ra5 {[%emt 0:00:50]} 56. Rf5 {[%emt 0:00:02] And now c6 would win.} Ra3 {[%emt 0:00:02]} 57. c6 {[%emt 0:00:33] Threatens to win with c7.} Rc3 $2 {[%emt 0:00:07][%mdl 8192] A mistake that costs the game.} (57... Re3 $11 58. c4 Bc3+ 59. Kc2 Re2+ 60. Kb3 (60. Kd3 Rd2+ 61. Ke4 Re2+ 62. Kd5 d3 $11) 60... Rb2+ 61. Ka3 Rb8) 58. Ra5 $18 {[%emt 0:00:02] White is clearly winning.} Bb2 {[%emt 0:00:58]} 59. Rb5 {[%emt 0:00:01]} Ba3 {[%emt 0:00:20]} 60. Rb3 {[%emt 0:00:01]} Rxb3 {[%emt 0:00:10]} 61. cxb3 {[%emt 0:00:01] White wants to mate with c7.} Bd6 {[%emt 0:00:03]} 62. Kd3 {[%emt 0:00:03] Weighted Error Value: White=0.20 (precise) /Black=0.28 (precise)} 1-0

[Event "14th BPB Limburg Open 2022"]
[Site "Maastricht"]
[Date "2022.06.05"]
[Round "4.9"]
[White "Noiroux, Kevin"]
[Black "Braun, Christian"]
[Result "0-1"]
[ECO "D00"]
[WhiteElo "2215"]
[BlackElo "2426"]
[Annotator "TA"]
[PlyCount "78"]
[EventDate "2022.06.03"]
[EventType "swiss"]
[EventCountry "NED"]
[SourceTitle "playchess.com"]
[Source "ChessBase"]
[SourceQuality "1"]
[TimeControl "7200+15"]

{[%evp 13,78,-7,0,0,0,0,0,0,0,0,0,0,0,0,0,0,0,0,0,0,0,0,0,0,7,0,194,182,176,172,167,169,284,42,32,29,147,89,167,158,118,0,0,0,4,4,3,-536,-535,-533,-521,-442,-408,-590,-590,-872,-428,-981,-698,-933,-839,-1337,-1343,-1292,-1252,-1150,-1090]} 1. d4 {[%emt 0:00:02]} Nf6 {[%emt 0:19:26]} 2. Nf3 {[%emt 0:00:28]} g6 {[%emt 0:00:31]} 3. Nc3 {[%emt 0:00:04]} d5 {[%emt 0:00:23]} 4. Bf4 {[%emt 0:00:07]} Bg7 {[%emt 0:00:11]} 5. e3 {[%emt 0:00:05]} O-O {[%emt 0:00:11]} 6. Be2 {[%emt 0:00:03]} c5 {[%emt 0:00:08]} 7. dxc5 {[%emt 0:00:04] The modern move.} Nbd7 {[%emt 0:00:05]} 8. Nxd5 {[%emt 0:00:08] D00: 1 d4 d5: Unusual lines.} Nxd5 {[%emt 0:00:06]} 9. Qxd5 {[%emt 0:00:04]} Bxb2 {[%emt 0:00:07]} 10. O-O $1 {[%emt 0:00:04] The position is equal.} Bxa1 {[%emt 0:00:05]} 11. Rxa1 {[%emt 0:00:04]} Qa5 {[%emt 0:00:09]} 12. Bh6 {[%emt 0:00:32]} Qxc5 {[%emt 0:00:06]} 13. Qb3 {[%emt 0:00:04]} b6 {[%emt 0:00:06][%cal Oc8b7]} 14. Rd1 {[%emt 0:00:05]} Nf6 {[%emt 0:00:06]} 15. Ng5 $40 {[%emt 0:05:26][%cal Ob3f7][%mdl 128] Inhibits Be6. White threatens Qxf7+! and mate. White mounts an attack.} Bf5 {[%emt 0:02:00]} 16. Bc4 {[%emt 0:05:13][%cal Rc4f7] A strong pair of Bishops.} e6 $1 {[%emt 0:00:06] [#]} 17. Qb2 $146 {[%emt 0:00:15]} ({Predecessor:} 17. Qc3 Nh5 18. Rd4 b5 19. Bxf8 Rxf8 20. Nxf7 e5 21. Nh6+ Kh8 22. Rd5 Qxc4 23. Qxe5+ Ng7 24. Nf7+ {½-½ (24) Brousek,J (2270)-Koestner,W (2262) ICCF email 2017}) 17... Nh5 {[%emt 0:03:35]} 18. Bb3 {[%emt 0:06:48]} Rad8 {[%emt 0:04:34][%cal Rd8d1]} 19. Rf1 {[%emt 0:02:22]} Rc8 $2 {[%emt 0:06:27]} (19... e5 $11 {and Black stays safe.}) 20. e4 $18 {[%emt 0:31:26]} Bg4 {[%emt 0:05:08]} 21. h3 $1 {[%emt 0:00:40]} (21. Bxf8 Qxg5 22. f4 Qa5 $17) 21... Be2 {[%emt 0:00:24]} 22. Re1 {[%emt 0:05:06]} Qd6 {[%emt 0:00:13]} (22... Bc4 $142) 23. Bxf8 $2 {[%emt 0:37:39]} (23. g4 $1 $18 {[%cal Rg4h5]} Qd2 24. Qa1 (24. Rxe2 Qxe2 25. gxh5 Qe1+ 26. Kg2 Qc3 $16)) 23... Rxf8 $14 {[%emt 0:01:57]} 24. c4 {[%emt 0:02:09]} Bd3 {[%emt 0:02:10] [#]} (24... Qf4 $11) 25. Rd1 {[%emt 0:03:52]} (25. Nf3 $142 $1) 25... Rd8 {[%emt 0:07:57]} (25... Qe7 $16 {keeps fighting.}) 26. Qd2 $18 {[%emt 0:01:13]} Nf4 {[%emt 0:03:29] [#]} 27. g3 {[%emt 0:16:11]} (27. Nf3 $1 $16 {e5 is the strong threat.} e5 28. g3 Nxh3+ 29. Kg2) 27... Ne2+ $11 {[%emt 0:01:10]} 28. Kg2 {[%emt 0:00:24] aiming for Bc2.} Qc5 {[%emt 0:04:24]} 29. Nf3 {[%emt 0:05:41]} b5 $1 {[%emt 0:00:26]} 30. Qxe2 $2 {[%emt 0:00:46][%mdl 8192] White does not recover from this.} Bxe2 $19 {[%emt 0:00:17]} 31. Rxd8+ {[%emt 0:00:02]} Kg7 {[%emt 0:00:08]} 32. cxb5 {[%emt 0:00:04]} Qc1 {[%emt 0:03:36] Against Bd1. ( -> ...Qf1+)} 33. Nd2 {[%emt 0:00:02] Against Qf1+} (33. Nh2 $142) 33... Bxb5 {[%emt 0:00:47] White must now prevent ...a5. Black is clearly winning.} 34. a4 {[%emt 0:01:03]} Bc6 {[%emt 0:00:35]} (34... Qc7 $142 35. Rd4 Qc3) 35. f3 {[%emt 0:00:27]} (35. Kf3 $142) 35... Qe1 {[%emt 0:00:40][%cal Oc6d5] Strongly threatening ...Bd5!} 36. h4 {[%emt 0:00:16]} a5 {[%emt 0:01:36][%cal Oc6d5]} 37. Rd6 {[%emt 0:00:07] [#]} Bd5 $1 {[%emt 0:00:19][%mdl 512]} 38. exd5 {[%emt 0:00:23]} (38. e5 Qxe5) 38... Qxd2+ {[%emt 0:00:07]} 39. Kh3 {[%emt 0:00:14]} Qb4 {[%emt 0:00:11][%csl LRb3,LRd6] Weighted Error Value: White=0.80/Black=0.46} 0-1

[Event "14th BPB Limburg Open 2022"]
[Site "Maastricht"]
[Date "2022.06.05"]
[Round "4.10"]
[White "Ondersteijn, Niels"]
[Black "Pham, Khoi"]
[Result "1/2-1/2"]
[ECO "A12"]
[WhiteElo "2376"]
[BlackElo "2291"]
[Annotator "TA"]
[PlyCount "91"]
[EventDate "2022.06.03"]
[EventType "swiss"]
[EventCountry "NED"]
[SourceTitle "playchess.com"]
[Source "ChessBase"]
[SourceQuality "1"]
[TimeControl "7200+15"]

{[%evp 20,91,-25,-9,0,-18,0,-14,-13,-15,0,3,21,10,8,6,27,3,32,31,53,29,57,63,67,46,46,48,52,49,64,64,64,0,53,41,34,32,28,12,17,12,7,0,0,0,0,0,0,0,0,0,0,0,0,0,0,0,0,0,-8,-33,-33,-33,-35,-41,-30,-31,-10,-67,-58,-57,-53,-92]} 1. b3 {[%emt 0:02:04]} d5 {[%emt 0:01:44]} 2. Bb2 {[%emt 0:00:13]} Bf5 {[%emt 0:00:17]} 3. Nf3 {[%emt 0:01:43]} e6 {[%emt 0:00:19]} 4. c4 {[%emt 0:01:31]} c6 {[%emt 0:00:39]} 5. g3 {[%emt 0:00:17]} h6 {[%emt 0:00:10]} 6. Bg2 {[%emt 0:00:06]} Nf6 {[%emt 0:00:05]} 7. O-O {[%emt 0:00:15]} Be7 {[%emt 0:00:29]} 8. d3 {[%emt 0:00:16]} O-O {[%emt 0:00:41]} 9. Nbd2 {[%emt 0:00:06]} Nbd7 {[%emt 0:01:20] 9...a5 is more fashionable.} 10. a3 {[%emt 0:00:31]} a5 {[%emt 0:01:42]} 11. Ra2 {[%emt 0:01:19]} Qc7 {[%emt 0:14:12] A12: English Opening: 1...c6 with b3 by White.} 12. Qa1 {[%emt 0:00:48]} Rfd8 {[%emt 0:04:52]} 13. Rc1 {[%emt 0:13:46] [#]} Qb6 $146 {[%emt 0:06:31] The position is equal.} ({Predecessor:} 13... Ne8 14. Nd4 dxc4 15. Nxf5 exf5 16. bxc4 Nc5 17. Be5 Bd6 18. Bxd6 Qxd6 19. Rb1 Nc7 {1-0 (52) Johansen,D (2420)-Bukhalaf,K Khanty-Mansiysk 2010}) 14. Bc3 {[%emt 0:14:24]} Qa6 {[%emt 0:09:23]} 15. cxd5 {[%emt 0:12:02]} cxd5 {[%emt 0:02:47]} 16. a4 {[%emt 0:09:36]} Bg6 {[%emt 0:17:43]} 17. Rac2 {[%emt 0:06:19]} Ne8 {[%emt 0:07:01]} 18. Nd4 {[%emt 0:04:45]} Nc5 {[%emt 0:14:03][%cal Bd7c5,Bc5a6,Ba6b4][%mdl 32]} 19. N2f3 {[%emt 0:05:42]} Bf6 {[%emt 0:05:05]} 20. Qa3 {[%emt 0:05:30]} Qb6 {[%emt 0:10:15][%cal Oc5e4]} 21. Nb5 {[%emt 0:07:34] [#] Threatens to win with Bxf6.} Na6 {[%emt 0:00:52]} 22. Bxf6 {[%emt 0:07:31]} Nxf6 {[%emt 0:00:04]} 23. Ne5 {[%emt 0:00:46] Against Ng4} Bh5 {[%emt 0:01:58]} 24. Qb2 {[%emt 0:07:54]} Nb4 {[%emt 0:05:19]} 25. Rc7 {[%emt 0:00:58]} Na6 {[%emt 0:01:19]} 26. R7c2 {[%emt 0:02:47] 0x0.0022fa085959dp-1022s more active pieces.} Nb4 {[%emt 0:00:06]} 27. Rc3 {[%emt 0:00:38]} Ng4 {[%emt 0:01:34]} 28. Nxg4 {[%emt 0:01:25]} Bxg4 {[%emt 0:00:03][%cal Bh5g4,Bg4f5,Bf5g6][%mdl 32]} 29. Rc7 {[%emt 0:01:13][%cal Oc7f7] next Rxf7! is good for White.} Nc6 {[%emt 0:01:48]} 30. h3 {[%emt 0:02:07]} Bf5 {[%emt 0:00:19]} 31. g4 {[%emt 0:01:52]} Bg6 {[%emt 0:00:05]} 32. Qc3 {[%emt 0:04:04]} Rac8 {[%emt 0:00:57]} 33. Rxc8 {[%emt 0:00:31]} Rxc8 {[%emt 0:00:04]} 34. Qc5 {[%emt 0:00:08]} Qxc5 {[%emt 0:01:48]} 35. Rxc5 {[%emt 0:00:02]} b6 {[%emt 0:01:39]} 36. Rc1 {[%emt 0:00:44] [#] Black must now prevent Nd6.} Na7 {[%emt 0:01:07]} 37. Rxc8+ {[%emt 0:00:54]} Nxc8 $11 {[%emt 0:00:04][%mdl 4096] Endgame KBN-KBN} 38. f4 {[%emt 0:00:07]} Kf8 {[%emt 0:01:38]} 39. Kf2 {[%emt 0:00:15]} Ke7 {[%emt 0:00:35]} 40. Nd4 {[%emt 0:01:05]} Kd6 {[%emt 0:02:23]} 41. Ke3 {[%emt 0:03:03]} Kc5 {[%emt 0:01:58]} 42. Nc2 {[%emt 0:00:04]} Nd6 {[%emt 0:01:29]} 43. Kd2 {[%emt 0:00:51]} b5 {[%emt 0:00:24]} 44. axb5 {[%emt 0:00:15]} (44. e3 $11) 44... Nxb5 $15 {[%emt 0:00:04]} 45. e3 $1 {[%emt 0:00:28]} d4 {[%emt 0:00:18]} 46. e4 {[%emt 0:00:33] Weighted Error Value: White=0.10 (very precise) /Black=0.06 (flawless)} 1/2-1/2